{"text_format":"1","workbook":"xlsx","n_sheets":1,"sheets":["Monthly Stock Rep."],"not_rendered":{"charts":0,"images":0,"macros":0,"external_links":0,"defined_names":1,"comments":0,"pivot_tables":0},"unopened":[],"bounds":{"document_bytes":16777216,"sheet_cells":100000,"rows_first":2000,"rows_last":500,"rows_between":2000,"halvings":0,"cell_chars":16384,"cell_head_chars":4096},"cells_cut":0,"cells_raw":0,"read":"whole","date_system":"1900"}

{"sheet":"Monthly Stock Rep.","index":0,"n_rows":30,"n_cols":18,"rows_kept":30,"cut":false,"hidden":false,"merged":[[0,0,0,17],[26,0,26,17],[1,7,1,9],[1,10,1,13],[2,10,2,13],[2,7,2,9],[1,1,1,4],[2,1,2,4],[28,0,28,2],[28,6,28,11],[29,6,29,11],[29,0,29,2]]}
["CATHOLIC RELIEF SERVICES MONTHLY STOCK MOVEMENT REPORT"]
["COUNTRY PROGRAM",null,null,null,null,null,null,"PERIOD:"]
["WAREHOUSE :",null,null,null,null,null,null,"NAME OF SUPERVISOR :"]
[]
[]
["A.  INVENTORY - BEGINNING OF PERIOD"]
["B.  RECEIPTS"]
["          B1. Arrivals with DN / WB / BL (annex copies)"]
["          B2. Recovery of previous losses"]
["          B3. Food returned by other agencies"]
["          B4. Food borrowed from other agencies"]
["          B5. Other receipts (describe)"]
["C.  TOTAL AVAILABLE (A+B)",{"$f":"SUM(B6:B12)","v":0},{"$f":"SUM(C6:C12)","v":0},{"$f":"SUM(D6:D12)","v":0},0,0,0,0,0,0,0,0,{"$f":"SUM(M6:M12)","v":0},{"$f":"SUM(N6:N12)","v":0},0,0,0,0]
["D.  QUANTITY DISPATCHED"]
["E.  LOSSES (describe in detail):"]
["          E1. Losses during transport (ocean, external, local, etc.)"]
["          E2. Internal losses (e.g., at warehouse)"]
["          E3. Other losses (e.g., theft)"]
["F.  OTHER REDUCTIONS IN STOCK:"]
["          F1. Food loaned to other agencies"]
["          F2. Food returned to other agencies"]
["G.  TOTAL REDUCTIONS / LOSSES (D+E+F)",{"$f":"SUM(B14)","v":0},{"$f":"SUM(C14:C21)","v":0},{"$f":"SUM(D14:D21)","v":0},0,0,0,0,0,0,0,0,{"$f":"SUM(M14:M21)","v":0},{"$f":"SUM(N14:N21)","v":0},0,0,0,0]
["H.  STOCK - END OF PERIOD (according to stock register:  C - G)",{"$f":"B13-B22","v":0},{"$f":"C13-C22","v":0},0,0,0,0,0,0,0,0,0,{"$f":"M13-M22","v":0},{"$f":"N13-N22","v":0},0,0,0,0]
["I.  STOCK - END OF PERIOD (according to physical inventory)"]
["J.  DIFFERENCE (I -H) (explain below)",{"$f":"B24-B23","v":0},{"$f":"C24-C23","v":0},{"$f":"D24-D23","v":0},0,0,0,0,0,0,0,0,{"$f":"M24-M23","v":0},{"$f":"N24-N23","v":0},0,0,0,{"$f":"R24-R23","v":0}]
[]
["EXPLANATION OF DIFFERENCES:  "]
["I certify that all information is true and correct."]
[]
["SIGNATURE OF SUPERVISOR",null,null,null,null,null,"DATE"]